fUST/lending_fUST_20240826
["ID","MTS","AMOUNT","RATE_DAILY","PERIOD"]
[336036377,1724675445898,-824.17,0.00012352,2]
[336036378,1724675445908,-505.39252896,0.00012352,2]
[336036379,1724675445917,-1265.86,0.00012352,2]
[336036380,1724675445926,-608.84,0.00012352,2]
[336036381,1724675445935,-500.0,0.00012352,2]
[336036382,1724675445945,-722.78,0.00012352,2]
[336036383,1724675445954,-596.16,0.00012352,2]
[336036384,1724675445964,-500.42340989,0.00012352,2]
[336036385,1724675445973,-616.34,0.00012352,2]
[336036386,1724675445983,-701.49,0.00012352,2]
[336036387,1724675445992,-1055.67,0.00012352,2]
[336036388,1724675446003,-846.81,0.00012352,2]
[336036389,1724675446013,-846.81,0.00012352,2]
[336036390,1724675446023,-846.81,0.00012352,2]
[336036391,1724675446032,-846.81,0.00012352,2]
[336036392,1724675446041,-846.81,0.00012352,2]
[336036398,1724675446098,-500.0,0.00012352,2]
[336036400,1724675446107,-670.78,0.00012352,2]
[336036401,1724675446117,-1277.96,0.00012352,2]
[336036402,1724675446126,-1277.96,0.00012352,2]
[336036403,1724675446135,-1277.96,0.00012352,2]
[336036404,1724675446145,-1277.96,0.00012352,2]
[336036405,1724675446154,-500.0,0.00012353,2]
[336036406,1724675446164,-508.18806498,0.00012353,2]
[336036407,1724675446173,-500.0,0.00012353,2]
[336036408,1724675446182,-667.69,0.00012353,2]
[336036409,1724675446191,-500.0,0.00012353,2]
[336036410,1724675446201,-500.0,0.00012353,2]
[336036411,1724675446210,-500.0,0.00012353,2]
[336036412,1724675446219,-500.0,0.00012353,2]
[336036413,1724675446229,-500.0,0.00012353,2]
[336036414,1724675446238,-500.0,0.00012353,2]
[336036415,1724675446248,-500.0,0.00012353,2]
[336036416,1724675446265,-430.62158138,0.00012353,2]
[336036417,1724675446274,-500.0,0.00012353,2]
[336036418,1724675446283,-500.0,0.00012353,2]
[336036419,1724675446295,-500.0,0.00012353,2]
[336036420,1724675446305,-500.0,0.00012353,2]
[336036421,1724675446314,-500.0,0.00012353,2]
[336036422,1724675446324,-500.0,0.00012353,2]
[336036423,1724675446333,-500.0,0.00012353,2]
[336036424,1724675446342,-370.90443613,0.00012353,2]
[336036425,1724675446351,-500.0,0.00012353,2]
[336036426,1724675446361,-500.0,0.00012353,2]
[336036427,1724675446370,-500.0,0.00012353,2]
[336036428,1724675446379,-204.58367327,0.00012353,2]
[336036429,1724675543401,161.348623,0.00011428,2]
[336036430,1724675544226,114.40243634,0.00012024,2]
[336036439,1724675743477,273.37336231,0.0001,2]
[336036463,1724676435100,-495.51686848,0.00010081,2]
[336036464,1724676435122,-818.13880886,0.0001026,2]
[336036465,1724676435145,-300.0,0.000106,2]
[336036466,1724676435169,-24890.0,0.00010601,2]
[336036467,1724676435191,-1125.8177556,0.00010668,2]
[336036468,1724676435213,-4460.0815425,0.00010686,2]
[336036469,1724676435236,-243.15687,0.00011102,2]
[336036470,1724676435259,-243.15687,0.00011133,2]
[336036471,1724676435289,-243.15687,0.00011163,2]
[336036472,1724676435322,-243.15687,0.00011193,2]
[336036473,1724676435346,-243.15687,0.00011224,2]
[336036474,1724676435370,-243.15687,0.00011254,2]
[336036475,1724676435394,-243.15687,0.00011285,2]
[336036476,1724676435418,-243.15687,0.00011315,2]
[336036477,1724676435442,-243.15687,0.00011346,2]
[336036478,1724676435467,-243.15687,0.00011376,2]
[336036479,1724676435491,-243.15687,0.00011407,2]
[336036480,1724676435514,-422.61635359,0.00011409,2]
[336036481,1724676435537,-156.07985241,0.00011409,2]
[336036482,1724676435559,-156.92948105,0.00011409,2]
[336036483,1724676435583,-195.99010537,0.00011409,2]
[336036484,1724676435605,-728.8710597,0.00011409,2]
[336036485,1724676435630,-243.15687,0.00011437,2]
[336036486,1724676435655,-243.15687,0.00011467,2]
[336036487,1724676435679,-243.15687,0.00011498,2]
[336036488,1724676435703,-243.15687,0.00011528,2]
[336036489,1724676435726,-243.15687,0.00011559,2]
[336036490,1724676435749,-243.15687,0.00011589,2]
[336036491,1724676435772,-207.5309026,0.000116,2]
[336036492,1724676435796,-243.15687,0.0001162,2]
[336036493,1724676435825,-154.89913263,0.00011621,2]
[336036494,1724676435848,-207.30216883,0.00011621,2]
[336036495,1724676435874,-617.0,0.00011621,2]
[336036496,1724676435898,-155.41708141,0.00011621,2]
[336036497,1724676435922,-198.21272816,0.00011621,2]
[336036498,1724676435944,-155.25843996,0.00011621,2]
[336036499,1724676435967,-210.26167047,0.00011621,2]
[336036500,1724676435989,-190.09307092,0.00011621,2]
[336036501,1724676436012,-243.15687,0.0001165,2]
[336036502,1724676436034,-420.0,0.0001166,2]
[336036503,1724676436057,-243.15687,0.0001168,2]
[336036504,1724676436081,-320.30409158,0.00011712,2]
[336036505,1724676436104,-404.47284307,0.00011712,2]
[336036506,1724676436127,-688.74575077,0.00011712,2]
[336036507,1724676436149,-307.3686335,0.00011712,2]
[336036508,1724676436171,-154.82754058,0.00011712,2]
[336036509,1724676436193,-154.74467129,0.00011731,2]
[336036510,1724676436215,-153.0,0.00011741,2]
[336036511,1724676436236,-488.12311875,0.0001186,2]
[336036512,1724676436258,-414.8129397,0.000119,2]
[336036513,1724676436281,-415.4380614,0.00011929,2]
[336036514,1724676436303,-207.7743686,0.00011929,2]
[336036515,1724676436329,-207.7743686,0.00011929,2]
[336036516,1724676436350,-415.4838736,0.00011929,2]
[336036517,1724676436372,-207.7743686,0.00011929,2]
[336036518,1724676436395,-207.7743686,0.00011978,2]
[336036519,1724676436416,-296.13258418,0.00011987,2]
[336036520,1724676436438,-207.5303056,0.000121,2]
[336036521,1724676436459,-207.7743686,0.000121,2]
[336036522,1724676436481,-3998.8,0.00012111,2]
[336036523,1724676436503,-535.23487752,0.0001212,2]
[336036524,1724676436524,-29922.67591879,0.00012163,2]
[336036525,1724676436547,-409.3532644,0.000122,2]
[336036526,1724676436569,-5720.92405137,0.00012229,2]
[336036527,1724676436852,-179.77060182,0.00012231,2]
[336036528,1724676436875,-179.77060179,0.00012238,2]
[336036529,1724676436897,-179.77060179,0.00012244,2]
[336036530,1724676436920,-925.15347087,0.00012251,2]
[336036531,1724676436942,-179.77060179,0.00012251,2]
[336036532,1724676436963,-306.0,0.000123,2]
[336036533,1724676436984,-153.0,0.000123,2]
[336036534,1724676437005,-500.0,0.00012328,2]
[336036535,1724676437026,-500.0,0.00012328,2]
[336036536,1724676437047,-758.83,0.00012328,2]
[336036537,1724676437070,-590.5,0.00012328,2]
[336036538,1724676437092,-500.0,0.00012328,2]
[336036539,1724676437113,-500.0,0.00012328,2]
[336036540,1724676437138,-500.0,0.00012328,2]
[336036541,1724676437159,-577.86,0.00012328,2]
[336036542,1724676437182,-500.0,0.00012328,2]
[336036543,1724676437203,-500.0,0.00012328,2]
[336036544,1724676437225,-500.0,0.00012328,2]
[336036545,1724676437247,-500.0,0.00012328,2]
[336036546,1724676437269,-500.0,0.00012328,2]
[336036547,1724676437292,-500.0,0.00012328,2]
[336036548,1724676437314,-500.0,0.00012328,2]
[336036549,1724676437337,-590.47,0.00012328,2]
[336036550,1724676437362,-486.96804345,0.00012328,2]
[336036551,1724676437384,-500.0,0.00012328,2]
[336036552,1724676437408,-688.85,0.00012328,2]
[336036553,1724676437431,-500.0,0.00012328,2]
[336036554,1724676437454,-500.0,0.00012328,2]
[336036555,1724676437479,-500.0,0.00012328,2]
[336036556,1724676437500,-500.0,0.00012328,2]
[336036557,1724676437523,-500.0,0.00012328,2]
[336036558,1724676437544,-500.0,0.00012328,2]
[336036559,1724676437567,-500.0,0.00012328,2]
[336036560,1724676437591,-13030.36430592,0.00012329,2]
[336036574,1724676555131,-157.20133548,0.00010958,2]
[336036575,1724676555167,-153.0,0.00011741,2]
[336036587,1724676604816,6153.15272595,0.00011842,2]
[336036588,1724676604838,249.97057833,0.00011842,2]
[336036636,1724676632149,-434.4293937,0.00011842,2]
[336036639,1724676632161,-2012.88892037,0.00011842,2]
[336036641,1724676632172,-300.0,0.00011986,2]
[336036643,1724676632181,-24911.07968479,0.00011987,2]
[336036645,1724676632190,-2095.59183245,0.00011999,3]
[336036646,1724676632200,-190.06856457,0.00012163,2]
[336036647,1724676632209,-207.7743686,0.000122,2]
[336036648,1724676632220,-207.7743686,0.000122,2]
[336036650,1724676632232,-153.0,0.000122,2]
[336036652,1724676632242,-306.0,0.000122,2]
[336036654,1724676632251,-501.87,0.0001232,2]
[336036656,1724676632260,-672.13,0.0001232,2]
[336036658,1724676632269,-26390.3024693,0.00012321,2]
[336036659,1724676632279,-500.0,0.00012328,2]
[336036660,1724676632288,-500.0,0.00012328,2]
[336036661,1724676632297,-500.0,0.00012328,2]
[336036662,1724676632307,-573.42,0.00012328,2]
[336036663,1724676632316,-500.0,0.00012328,2]
[336036664,1724676632325,-500.0,0.00012328,2]
[336036665,1724676632335,-500.0,0.00012328,2]
[336036666,1724676632344,-500.0,0.00012328,2]
[336036667,1724676632354,-500.0,0.00012328,2]
[336036668,1724676632363,-798.73,0.00012328,2]
[336036670,1724676632373,-500.0,0.00012328,2]
[336036672,1724676632383,-500.0,0.00012328,2]
[336036674,1724676632392,-764.39,0.00012328,2]
[336036676,1724676632402,-500.0,0.00012328,2]
[336036678,1724676632412,-500.0,0.00012328,2]
[336036680,1724676632423,-669.62,0.00012328,2]
[336036682,1724676632433,-500.0,0.00012328,2]
[336036684,1724676632444,-187.09668074,0.00012328,2]
[336036687,1724676632456,-312.90331926,0.00012328,2]
[336036689,1724676632468,-423.11668074,0.00012328,2]
[336036692,1724676632486,-76.88331926,0.00012328,2]
[336036694,1724676632495,-1995.26,0.00012328,2]
[336036696,1724676632505,-500.0,0.00012328,2]
[336036698,1724676632515,-500.0,0.00012328,2]
[336036700,1724676632524,-663.54,0.00012328,2]
[336036702,1724676632533,-500.0,0.00012328,2]
[336036704,1724676632542,-500.0,0.00012328,2]
[336036706,1724676632551,-591.46,0.00012328,2]
[336036708,1724676632561,-500.0,0.00012328,2]
[336036710,1724676632571,-500.0,0.00012328,2]
[336036712,1724676632580,-1163.6,0.00012328,2]
[336036714,1724676632589,-649.01,0.00012328,2]
[336036716,1724676632600,-246.55385508,0.00012328,2]
[336036911,1724676638172,-635.76614492,0.00012328,2]
[336036912,1724676638181,-247.13386289,0.00012328,2]
[336036997,1724676639005,-252.86613711,0.00012328,2]
[336036999,1724676639015,-500.0,0.00012328,2]
[336037001,1724676639024,-500.0,0.00012328,2]
[336037003,1724676639033,-500.0,0.00012328,2]
[336037005,1724676639043,-500.0,0.00012328,2]
[336037007,1724676639052,-500.0,0.00012328,2]
[336037009,1724676639061,-283.92382111,0.00012328,2]
[336037011,1724676639071,-500.0,0.00012328,2]
[336037013,1724676639081,-500.0,0.00012328,2]
[336037015,1724676639090,-681.73,0.00012328,2]
[336037017,1724676639099,-624.91,0.00012328,2]
[336037019,1724676639109,-500.0,0.00012328,2]
[336037021,1724676639118,-500.0,0.00012328,2]
[336037023,1724676639128,-500.0,0.00012328,2]
[336037025,1724676639137,-1450.37,0.00012328,2]
[336037027,1724676639148,-500.0,0.00012328,2]
[336037029,1724676639159,-500.0,0.00012328,2]
[336037031,1724676639169,-500.0,0.00012328,2]
[336037033,1724676639178,-500.0,0.00012328,2]
[336037035,1724676639187,-500.0,0.00012328,2]
[336037037,1724676639197,-500.0,0.00012328,2]
[336037039,1724676639207,-500.0,0.00012328,2]
[336037041,1724676639216,-500.0,0.00012328,2]
[336037043,1724676639227,-500.0,0.00012328,2]
[336037045,1724676639237,-690.3,0.00012328,2]
[336037047,1724676639247,-595.97,0.00012328,2]
[336037049,1724676639256,-500.0,0.00012328,2]
[336037051,1724676639266,-500.0,0.00012328,2]
[336037053,1724676639275,-500.0,0.00012328,2]
[336037055,1724676639284,-500.0,0.00012328,2]
[336037057,1724676639293,-500.44982316,0.00012328,2]
[336037059,1724676639302,-500.0,0.00012328,2]
[336037061,1724676639311,-500.0,0.00012328,2]
[336037063,1724676639320,-203.1712821,0.00012328,2]
[336037065,1724676639329,-500.0,0.00012328,2]
[336037067,1724676639338,-500.0,0.00012328,2]
[336037069,1724676639348,-500.0,0.00012328,2]
[336037071,1724676639357,-500.0,0.00012328,2]
[336037073,1724676639366,-500.0,0.00012328,2]
[336037075,1724676639375,-4505.33910642,0.00012329,2]
[336037077,1724676639387,-662.732602,0.00012329,2]
[336037081,1724676639409,-8027.07952628,0.00012329,2]
[336037083,1724676639419,-506.03,0.00012329,2]
[336037085,1724676639427,-1054.73,0.00012329,2]
[336037087,1724676639436,-834.16,0.00012329,2]
[336037089,1724676639445,-785.71,0.00012329,2]
[336037091,1724676639455,-798.73,0.00012329,2]
[336037093,1724676639464,-500.0,0.00012329,2]
[336037095,1724676639475,-500.0,0.00012329,2]
[336037097,1724676639485,-659.19,0.00012329,2]
[336037099,1724676639494,-1262.09,0.00012329,2]
[336037101,1724676639504,-500.0,0.00012329,2]
[336037103,1724676639513,-22651.65,0.00012329,2]
[336037105,1724676639522,-1063.71,0.00012329,2]
[336037107,1724676639532,-1021.82,0.00012329,2]
[336037109,1724676639541,-500.0,0.00012329,2]
[336037111,1724676639550,-52780.6049387,0.0001233,2]
[336037113,1724676639560,-4562.37211089,0.00012331,2]
[336037116,1724676639577,-8632.77912381,0.00012331,2]
[336037118,1724676639587,-500.0,0.00012331,2]
[336037119,1724676639596,-500.0,0.00012331,2]
[336037121,1724676639606,-354.11645896,0.00012331,2]
[336037123,1724676639615,-500.0,0.00012331,2]
[336037126,1724676639624,-954.05,0.00012331,2]
[336037129,1724676639633,-500.0,0.00012331,2]
[336037132,1724676639642,-521.78,0.00012331,2]
[336037134,1724676639652,-500.0,0.00012331,2]
[336037137,1724676639661,-500.0,0.00012331,2]
[336037139,1724676639670,-500.0,0.00012331,2]
[336037141,1724676639679,-500.0,0.00012331,2]
[336037143,1724676639689,-500.0,0.00012331,2]
[336037145,1724676639698,-503.22569739,0.00012331,2]
[336037147,1724676639708,-795.06,0.00012331,2]
[336037150,1724676639718,-856.19,0.00012331,2]
[336037151,1724676639728,-672.39,0.00012331,2]
[336037154,1724676639738,-949.27,0.00012331,2]
[336037157,1724676639747,-719.63,0.00012331,2]
[336037158,1724676639756,-500.0,0.00012331,2]
[336037159,1724676639766,-809.03,0.00012331,2]
[336037160,1724676639777,-501.31729394,0.00012331,2]
[336037161,1724676639786,-275.79,0.00012331,2]
[336037162,1724676639796,-614.65,0.00012331,2]
[336037163,1724676639806,-993.62,0.00012331,2]
[336037164,1724676639816,-561.66,0.00012331,2]
[336037165,1724676639825,-664.55,0.00012331,2]
[336037166,1724676639835,-507.91,0.00012331,2]
[336037167,1724676639844,-973.95,0.00012331,2]
[336037168,1724676639854,-561.41,0.00012331,2]
[336037169,1724676639863,-500.0,0.00012331,2]
[336037170,1724676639877,-500.0,0.00012331,2]
[336037171,1724676639886,-500.0,0.00012331,2]
[336037172,1724676639896,-500.0,0.00012331,2]
[336037174,1724676639905,-519.7,0.00012331,2]
[336037176,1724676639916,-500.0,0.00012331,2]
[336037178,1724676639926,-500.0,0.00012331,2]
[336037180,1724676639935,-598.98,0.00012331,2]
[336037182,1724676639947,-500.0,0.00012331,2]
[336037184,1724676639957,-500.0,0.00012331,2]
[336037186,1724676639968,-500.0,0.00012331,2]
[336037188,1724676639978,-500.0,0.00012331,2]
[336037190,1724676639987,-843.42,0.00012331,2]
[336037192,1724676639997,-500.0,0.00012331,2]
[336037194,1724676640007,-790.85,0.00012331,2]
[336037196,1724676640016,-500.0,0.00012331,2]
[336037198,1724676640027,-565.52,0.00012331,2]
[336037200,1724676640037,-1335.9,0.00012331,2]
[336037202,1724676640047,-556.49,0.00012331,2]
[336037203,1724676640057,-500.0,0.00012331,2]
[336037204,1724676640067,-500.0,0.00012331,2]
[336037206,1724676640077,-500.0,0.00012331,2]
[336037208,1724676640088,-1285.93,0.00012331,2]
[336037210,1724676640098,-630.57,0.00012331,2]
[336037212,1724676640108,-500.0,0.00012331,2]
[336037213,1724676640118,-798.73,0.00012331,2]
[336037215,1724676640127,-798.08,0.00012331,2]
[336037217,1724676640137,-500.0,0.00012331,2]
[336037219,1724676640148,-568.69,0.00012331,2]
[336037221,1724676640159,-500.0,0.00012331,2]
[336037223,1724676640168,-887.08,0.00012331,2]
[336037225,1724676640178,-644.35,0.00012331,2]
[336037227,1724676640187,-602.82,0.00012331,2]
[336037229,1724676640197,-500.0,0.00012331,2]
[336037231,1724676640207,-550.6,0.00012331,2]
[336037233,1724676640217,-895.78,0.00012331,2]
[336037235,1724676640228,-816.86,0.00012331,2]
[336037237,1724676640237,-500.0,0.00012331,2]
[336037239,1724676640247,-2235.33,0.00012331,2]
[336037240,1724676640258,-564.63,0.00012331,2]
[336037242,1724676640268,-1335.13,0.00012331,2]
[336037244,1724676640277,-817.87,0.00012331,2]
[336037246,1724676640287,-500.0,0.00012331,2]
[336037247,1724676640296,-748.34,0.00012331,2]
[336037248,1724676640306,-500.0,0.00012331,2]
[336037249,1724676640315,-612.34,0.00012331,2]
[336037250,1724676640325,-500.0,0.00012331,2]
[336037252,1724676640335,-500.0,0.00012331,2]
[336037253,1724676640344,-771.94,0.00012331,2]
[336037255,1724676640354,-500.0,0.00012331,2]
[336037257,1724676640363,-838.77,0.00012331,2]
[336037259,1724676640373,-1044.45,0.00012331,2]
[336037260,1724676640384,-740.96,0.00012331,2]
[336037262,1724676640394,-800.44,0.00012331,2]
[336037264,1724676640404,-721.34,0.00012331,2]
[336037266,1724676640414,-520.86,0.00012331,2]
[336037267,1724676640423,-500.0,0.00012331,2]
[336037270,1724676640434,-500.0,0.00012331,2]
[336037273,1724676640444,-610.71,0.00012331,2]
[336037275,1724676640454,-500.0,0.00012331,2]
[336037277,1724676640465,-1269.35,0.00012331,2]
[336037279,1724676640477,-500.0,0.00012331,2]
[336037281,1724676640486,-13195.1512347,0.00012332,2]
[336037283,1724676640496,-500.0,0.00012338,2]
[336037285,1724676640505,-798.73,0.00012338,2]
[336037287,1724676640514,-500.0,0.00012338,2]
[336037289,1724676640524,-500.0,0.00012338,2]
[336037291,1724676640534,-740.96,0.00012338,2]
[336037293,1724676640544,-500.0,0.00012339,2]
[336037295,1724676640553,-500.0,0.00012339,2]
[336037297,1724676640563,-500.0,0.00012339,2]
[336037299,1724676640574,-754.28,0.00012339,2]
[336037301,1724676640584,-503.00657275,0.00012339,2]
[336037304,1724676640595,-3376.24,0.00012339,2]
[336037306,1724676640605,-1255.75,0.00012339,2]
[336037308,1724676640615,-889.08,0.00012339,2]
[336037310,1724676640626,-515.74843349,0.00012339,2]
[336037408,1724676641568,-565.87,0.00012328,2]
[336037410,1724676641579,-500.0,0.00012328,2]
[336037412,1724676641588,-254.51156651,0.00012339,2]
[336037414,1724676641598,-641.25,0.00012339,2]
[336037416,1724676641607,-500.0,0.00012339,2]
[336037418,1724676641617,-500.0,0.00012339,2]
[336037420,1724676641627,-657.37,0.00012339,2]
[336037422,1724676641637,-656.07,0.00012339,2]
[336037424,1724676641647,-798.73,0.00012339,2]
[336037427,1724676641657,-798.73,0.00012339,2]
[336037429,1724676641666,-798.73,0.00012339,2]
[336037431,1724676641676,-798.73,0.00012339,2]
[336037433,1724676641685,-500.0,0.00012339,2]
[336037435,1724676641695,-500.0,0.00012339,2]
[336037437,1724676641705,-500.0,0.00012339,2]
[336037439,1724676641714,-500.0,0.00012339,2]
[336037441,1724676641724,-500.0,0.00012339,2]
[336037443,1724676641734,-500.0,0.00012339,2]
[336037445,1724676641743,-500.0,0.00012339,2]
[336037447,1724676641753,-740.96,0.00012339,2]
[336037449,1724676641763,-740.96,0.00012339,2]
[336037451,1724676641773,-740.96,0.00012339,2]
[336037453,1724676641783,-1106.87,0.0001234,2]
[336037455,1724676641793,-500.0,0.0001234,2]
[336037457,1724676641802,-500.0,0.0001234,2]
[336037459,1724676641813,-500.0,0.0001234,2]
[336037461,1724676641823,-500.0,0.0001234,2]
[336037463,1724676641832,-500.77007814,0.0001234,2]
[336037465,1724676641842,-500.0,0.0001234,2]
[336037467,1724676641852,-500.0,0.0001234,2]
[336037469,1724676641863,-500.0,0.0001234,2]
[336037471,1724676641875,-500.0,0.0001234,2]
[336037473,1724676641885,-500.0,0.0001234,2]
[336037475,1724676641895,-500.0,0.0001234,2]
[336037477,1724676641905,-500.0,0.0001234,2]
[336037480,1724676641916,-1095.02,0.0001234,2]
[336037482,1724676641925,-500.0,0.0001234,2]
[336037484,1724676641935,-501.17789383,0.0001234,2]
[336037486,1724676641947,-500.57871281,0.0001234,2]
[336037488,1724676641957,-500.0,0.0001234,2]
[336037490,1724676641968,-500.0,0.0001234,2]
[336037492,1724676641980,-500.0,0.0001234,2]
[336037494,1724676641990,-500.0,0.0001234,2]
[336037496,1724676642000,-500.0,0.0001234,2]
[336037498,1724676642010,-500.0,0.0001234,2]
[336037500,1724676642019,-500.0,0.0001234,2]
[336037502,1724676642029,-502.22118532,0.0001234,2]
[336037504,1724676642039,-500.0,0.0001234,2]
[336037506,1724676642048,-500.0,0.0001234,2]
[336037508,1724676642059,-500.0,0.0001234,2]
[336037510,1724676642068,-500.0,0.0001234,2]
[336037512,1724676642078,-441.30223798,0.0001234,2]
[336037514,1724676642087,-500.0,0.0001234,2]
[336037516,1724676642097,-1157.29,0.0001234,2]
[336037518,1724676642107,-500.0,0.0001234,2]
[336037520,1724676642118,-500.0,0.0001234,2]
[336037523,1724676642129,-500.0,0.0001234,2]
[336037525,1724676642139,-500.0,0.0001234,2]
[336037527,1724676642150,-500.0,0.0001234,2]
[336037529,1724676642161,-500.0,0.0001234,2]
[336037531,1724676642171,-500.0,0.0001234,2]
[336037533,1724676642182,-500.0,0.0001234,2]
[336037535,1724676642192,-500.0,0.0001234,2]
[336037537,1724676642202,-500.0,0.0001234,2]
[336037539,1724676642212,-500.0,0.0001234,2]
[336037541,1724676642222,-514.8,0.0001234,2]
[336037543,1724676642232,-500.0,0.0001234,2]
[336037545,1724676642242,-500.0,0.0001234,2]
[336037547,1724676642252,-527.93307846,0.0001234,2]
[336037550,1724676642262,-580.87,0.0001234,2]
[336037552,1724676642271,-505.67,0.0001234,2]
[336037555,1724676642290,-500.0,0.0001234,2]
[336037557,1724676642302,-500.0,0.0001234,2]
[336037559,1724676642312,-494.36229341,0.0001234,2]
[336037561,1724676642322,-500.0,0.0001234,2]
[336037563,1724676642331,-500.0,0.0001234,2]
[336037565,1724676642341,-500.0,0.0001234,2]
[336037567,1724676642352,-500.0,0.0001234,2]
[336037569,1724676642362,-1093.37,0.0001234,2]
[336037570,1724676642372,-572.21,0.0001234,2]
[336037571,1724676642382,-500.0,0.0001234,2]
[336037572,1724676642392,-500.0,0.0001234,2]
[336037573,1724676642402,-500.0,0.0001234,2]
[336037574,1724676642413,-500.0,0.0001234,2]
[336037575,1724676642422,-776.62,0.0001234,2]
[336037576,1724676642433,-1015.41,0.0001234,2]
[336037577,1724676642443,-766.06,0.0001234,2]
[336037578,1724676642453,-500.0,0.0001234,2]
[336037579,1724676642463,-887.55,0.0001234,2]
[336037580,1724676642473,-500.0,0.0001234,2]
[336037581,1724676642484,-500.0,0.0001234,2]
[336037582,1724676642494,-500.0,0.0001234,2]
[336037583,1724676642505,-500.0,0.0001234,2]
[336037585,1724676642515,-500.0,0.0001234,2]
[336037587,1724676642525,-500.0,0.0001234,2]
[336037589,1724676642535,-500.0,0.0001234,2]
[336037592,1724676642545,-500.0,0.0001234,2]
[336037594,1724676642555,-537.88016613,0.0001234,2]
[336037596,1724676642564,-737.97,0.0001234,2]
[336037598,1724676642575,-519.42282598,0.0001234,2]
[336037601,1724676642585,-500.0,0.0001234,2]
[336037603,1724676642595,-667.27,0.0001234,2]
[336037605,1724676642605,-581.61,0.0001234,2]
[336037607,1724676642615,-500.0,0.0001234,2]
[336037609,1724676642625,-567.85,0.0001234,2]
[336037611,1724676642636,-500.0,0.0001234,2]
[336037614,1724676642646,-614.65,0.0001234,2]
[336037617,1724676642656,-500.0,0.0001234,2]
[336037620,1724676642666,-1429.06,0.0001234,2]
[336037622,1724676642676,-997.79,0.0001234,2]
[336037624,1724676642685,-500.0,0.0001234,2]
[336037627,1724676642695,-969.99,0.0001234,2]
[336037629,1724676642706,-623.70342723,0.0001234,2]
[336037631,1724676642717,-500.0,0.0001234,2]
[336037633,1724676642727,-500.0,0.0001234,2]
[336037635,1724676642737,-500.0,0.0001234,2]
[336037637,1724676642747,-500.0,0.0001234,2]
[336037641,1724676642757,-856.96,0.0001234,2]
[336037643,1724676642766,-500.0,0.0001234,2]
[336037646,1724676642775,-500.0,0.0001234,2]
[336037649,1724676642786,-500.0,0.0001234,2]
[336037652,1724676642795,-500.0,0.0001234,2]
[336037655,1724676642805,-500.0,0.0001234,2]
[336037659,1724676642814,-500.0,0.0001234,2]
[336037662,1724676642824,-500.0,0.0001234,2]
[336037665,1724676642833,-500.0,0.0001234,2]
[336037668,1724676642843,-565.84,0.0001234,2]
[336037670,1724676642853,-500.0,0.0001234,2]
[336037673,1724676642862,-500.0,0.0001234,2]
[336037675,1724676642875,-500.0,0.0001234,2]
[336037677,1724676642884,-500.0,0.0001234,2]
[336037679,1724676642899,-644.91802753,0.0001234,2]
[336037683,1724676642911,-500.0,0.0001234,2]
[336037685,1724676642920,-574.96,0.0001234,2]
[336037687,1724676642930,-677.37,0.0001234,2]
[336037689,1724676642940,-663.82,0.0001234,2]